Workbook

Sheet 事业单位
A1: 附件：
A2: 2023年锦州开发区面向社会公开招聘事业单位工作人员（教师）拟聘用人员名单
A3: 序号 | B3: 姓名 | C3: 报考单位 | D3: 报考岗位 | E3: 考号 | F3: 笔试成绩 | G3: 面试成绩 | H3: 总成绩 | I3: 同岗位排名
A4: 1 | B4: 宋永为 | C4: 笔架山小学 | D4: 班主任 | E4: 2023001010927 | F4: 87.70 | G4: 87.04 | H4: =F4*0.4+G4*0.6 -> 87.30 | I4: 1
A5: 2 | B5: 张一凡 | C5: 笔架山小学 | D5: 班主任 | E5: 2023001010725 | F5: 85.60 | G5: 85.98 | H5: =F5*0.4+G5*0.6 -> 85.83 | I5: 2
A6: 3 | B6: 李梦曦 | C6: 笔架山小学 | D6: 班主任 | E6: 2023001010708 | F6: 85.60 | G6: 83.96 | H6: 84.62 | I6: 3
A7: 4 | B7: 孟繁宁 | C7: 杏山小学 | D7: 班主任 | E7: 2023002012802 | F7: 89.52 | G7: 82.82 | H7: 85.50 | I7: 1
A8: 5 | B8: 孙玉龙 | C8: 笔架山小学 | D8: 体育教师 | E8: 2023001021016 | F8: =VLOOKUP(E8,[1]事业编!$D$1:$F$65536,3,0) -> 93.98 | G8: 79.88 | H8: 85.52 | I8: 1
A9: 6 | B9: 任晓凡 | C9: 娘娘宫中心小学（临海小学） | D9: 体育教师 | E9: 2023003013221 | F9: =VLOOKUP(E9,[1]事业编!$D$1:$F$65536,3,0) -> 90.16 | G9: 84.38 | H9: 86.69 | I9: 1
A10: 7 | B10: 杜雪峰 | C10: 实验学校（初中部） | D10: 体育教师 | E10: 2023006013512 | F10: =VLOOKUP(E10,[1]事业编!$D$1:$F$65536,3,0) -> 81.18 | G10: 83.02 | H10: 82.28 | I10: 1
A11: 8 | B11: 龙雨 | C11: 笔架山小学 | D11: 美术教师 | E11: 2023001031602 | F11: =VLOOKUP(E11,[1]事业编!$D$1:$F$65536,3,0) -> 89.16 | G11: 79.92 | H11: 83.62 | I11: 1
A12: 9 | B12: 马旖旎 | C12: 杏山小学 | D12: 美术教师 | E12: 2023002022904 | F12: =VLOOKUP(E12,[1]事业编!$D$1:$F$65536,3,0) -> 90.08 | G12: 83.80 | H12: 86.31 | I12: 1
A13: 10 | B13: 金耀华 | C13: 笔架山小学 | D13: 英语教师 | E13: 2023001041822 | F13: =VLOOKUP(E13,[1]事业编!$D$1:$F$65536,3,0) -> 92.02 | G13: 84.52 | H13: 87.52 | I13: 1
A14: 11 | B14: 方曼宁 | C14: 娘娘宫中心小学（南凌小学） | D14: 音乐教师 | E14: 2023004013314 | F14: =VLOOKUP(E14,[1]事业编!$D$1:$F$65536,3,0) -> 84.76 | G14: 81.38 | H14: 82.73 | I14: 1
A15: 12 | B15: 黄涛 | C15: 娘娘宫中心小学（蚂蚁小学） | D15: 音乐教师 | E15: 2023005013415 | F15: =VLOOKUP(E15,[1]事业编!$D$1:$F$65536,3,0) -> 81.60 | G15: 80.28 | H15: 80.81 | I15: 1
A16: 13 | B16: 陈悦 | C16: 实验学校（初中部） | D16: 历史教师 | E16: 2023006023622 | F16: =VLOOKUP(E16,[1]事业编!$D$1:$F$65536,3,0) -> 83.72 | G16: 82.32 | H16: 82.88 | I16: 1
A17: 14 | B17: 刘凯妮 | C17: 第二初级中学 | D17: 历史教师 | E17: 2023008014126 | F17: =VLOOKUP(E17,[1]事业编!$D$1:$F$65536,3,0) -> 89.28 | G17: 84.26 | H17: 86.27 | I17: 1
A18: 15 | B18: 赵楚晗 | C18: 实验学校（初中部） | D18: 语文教师 | E18: 2023006033810 | F18: =VLOOKUP(E18,[1]事业编!$D$1:$F$65536,3,0) -> 84.66 | G18: 84.40 | H18: 84.50 | I18: 1
A19: 16 | B19: 李季 | C19: 实验学校（初中部） | D19: 道德与法治教师 | E19: 2023006043903 | F19: =VLOOKUP(E19,[1]事业编!$D$1:$F$65536,3,0) -> 85.18 | G19: 82.28 | H19: 83.44 | I19: 1
A20: 17 | B20: 刘思宇 | C20: 实验学校（初中部） | D20: 数学教师 | E20: 2023006054003 | F20: =VLOOKUP(E20,[1]事业编!$D$1:$F$65536,3,0) -> 86.50 | G20: 83.94 | H20: 84.96 | I20: 1
A21: 18 | B21: 王悦 | C21: 实验学校（初中部） | D21: 地理教师 | E21: 2023006064022 | F21: =VLOOKUP(E21,[1]事业编!$D$1:$F$65536,3,0) -> 82.74 | G21: 83.30 | H21: 83.08 | I21: 1
A22: 19 | B22: 高雨薇 | C22: 实验学校（初中部） | D22: 生物教师 | E22: 2023006074119 | F22: =VLOOKUP(E22,[1]事业编!$D$1:$F$65536,3,0) -> 90.26 | G22: 85.28 | H22: 87.27 | I22: 1
A23: 20 | B23: 王海红 | C23: 第一初级中学 | D23: 地理教师 | E23: 2023007014123 | F23: =VLOOKUP(E23,[1]事业编!$D$1:$F$65536,3,0) -> 83.00 | G23: 80.66 | H23: 81.60 | I23: 1
